bitfinex/quotes_BTCUSD_20251224
["timestamp","ask_amount","ask_price","bid_price","bid_amount"]
[1766577883094,0.06880777,87200.0,87191.0,0.02294907]
[1766577883243,0.06880777,87200.0,87192.0,0.01146894]
[1766577883629,0.01146802,87199.0,87191.0,0.08029439]
[1766577883853,0.06880777,87200.0,87191.0,0.08029439]
[1766577884056,0.06880777,87200.0,87192.0,0.01146894]
[1766577884254,0.06880706,87201.0,87192.0,0.06881364]
[1766577884456,0.06880706,87201.0,87193.0,0.01146881]
[1766577884657,0.06880706,87201.0,87192.0,0.06881364]
[1766577885664,0.06880706,87201.0,87193.0,0.01146881]
[1766577886008,0.02294749,87203.0,87194.0,0.01146867]
[1766577886205,0.02294749,87203.0,87194.0,0.06881195]
[1766577886411,0.02294749,87203.0,87195.0,0.01146854]
[1766577886809,0.08028519,87203.0,87195.0,0.01146854]
[1766577887008,0.08028519,87203.0,87194.0,0.06881195]
[1766577887213,0.01146762,87202.0,87194.0,0.06881195]
[1766577887409,0.01146762,87202.0,87194.0,0.01146867]
[1766577887959,0.08028519,87203.0,87195.0,0.01146854]
[1766577888137,0.08028519,87203.0,87194.0,0.06881191]
[1766577888336,0.08028519,87203.0,87195.0,0.01146854]
[1766577888542,0.08028505,87203.0,87194.0,0.06881191]
[1766577888742,0.01148,87203.0,87195.0,0.06881127]
[1766577888947,0.01148,87203.0,87196.0,0.01146841]
[1766577889165,0.01148,87203.0,87197.0,0.01146828]
[1766577889665,0.01148,87203.0,87196.0,0.01146841]
[1766577889867,0.01148,87203.0,87195.0,0.06881127]
[1766577890249,0.01148,87203.0,87196.0,0.05734202]
[1766577890474,0.01148,87203.0,87197.0,0.01146828]
[1766577890660,0.01148,87203.0,87196.0,0.06881043]
[1766577891136,0.01148,87203.0,87197.0,0.01146828]
[1766577891339,0.01148,87203.0,87198.0,0.06880884]
[1766577891542,0.01148,87203.0,87199.0,0.01146802]
[1766577891731,0.01148,87203.0,87198.0,0.01146815]
[1766577891927,0.01148,87203.0,87197.0,0.13111828]
[1766577892155,0.01148,87203.0,87198.0,0.01146815]
[1766577892773,0.00011,87205.0,87198.0,0.1884589]
[1766577892894,0.00011,87205.0,87198.0,0.13111815]
[1766577893137,0.01157723,87205.0,87198.0,0.11965]
[1766577893346,0.00011,87205.0,87198.0,0.11965]
[1766577894844,0.01157723,87205.0,87198.0,0.11965]
[1766577895217,0.01146736,87204.0,87198.0,0.11965]
[1766577895628,0.06891355,87205.0,87198.0,0.11965]
[1766577896006,0.01157723,87205.0,87198.0,0.11965]
[1766577896346,0.0689134,87205.0,87198.0,0.11965]
[1766577896550,0.0689134,87205.0,87197.0,0.01148]
[1766577897500,0.01157723,87205.0,87197.0,0.02294828]
[1766577897694,0.01146736,87204.0,87197.0,0.01148]
[1766577897844,0.06880434,87204.0,87197.0,0.01148]
[1766577898445,0.01146749,87203.0,87197.0,0.01148]
[1766577898646,0.0688053,87203.0,87197.0,0.01148]
[1766577899044,0.01146762,87202.0,87197.0,0.01148]
[1766577899300,0.01146802,87199.0,87187.0,0.15941959]
[1766577899495,0.05734192,87197.0,87187.0,0.21676703]
[1766577899699,0.06881105,87196.0,87188.0,0.01148]
[1766577899896,0.01146828,87197.0,87188.0,0.02294946]
[1766577900097,0.0573407,87199.0,87189.0,0.01146933]
[1766577900270,0.05734085,87198.0,87189.0,0.06881593]
[1766577900486,0.06880979,87197.0,87188.0,0.08029663]
[1766577901129,0.06881127,87195.0,87188.0,0.01148]
[1766577901332,0.01146854,87195.0,87188.0,0.01148]
[1766577902272,0.06881066,87196.0,87188.0,0.01148]
[1766577902477,0.01146841,87196.0,87188.0,0.02294946]
[1766577902867,0.06880979,87197.0,87188.0,0.08029669]
[1766577903073,0.06880979,87197.0,87188.0,0.17089946]
[1766577903074,0.01146841,87196.0,87188.0,0.17089946]
[1766577903262,0.06880979,87197.0,87189.0,0.01146933]
[1766577903614,0.01146828,87197.0,87190.0,0.01148]
[1766577905332,0.01146854,87195.0,87190.0,0.01148]
[1766577905513,0.06881076,87196.0,87190.0,0.01148]
[1766577905725,0.01146841,87196.0,87190.0,0.01148]
[1766577905966,0.06880986,87197.0,87190.0,0.01148]
[1766577906366,0.06881102,87196.0,87190.0,0.01148]
[1766577906840,0.01146841,87196.0,87190.0,0.01148]
[1766577907646,0.01146828,87197.0,87190.0,0.01148]
[1766577907968,0.01146841,87196.0,87190.0,0.01148]
[1766577908194,0.01146854,87195.0,87190.0,0.01148]
[1766577908379,0.06881135,87195.0,87190.0,0.01148]
[1766577908581,0.01146881,87193.0,87190.0,0.01148]
[1766577908823,0.06881391,87192.0,87188.0,0.14795]
[1766577908993,0.06881462,87191.0,87180.0,0.13623052]
[1766577909136,0.01146881,87193.0,87183.0,0.05735041]
[1766577909489,0.01146881,87193.0,87183.0,0.06882066]
[1766577909490,0.06881398,87193.0,87183.0,0.06882066]
[1766577909672,0.06881398,87193.0,87185.0,0.01146986]
[1766577909874,0.01146881,87193.0,87184.0,0.01146999]
[1766577910075,0.01146894,87192.0,87184.0,0.01146999]
[1766577910680,0.01146894,87192.0,87184.0,0.0688198]
[1766577910880,0.06881368,87192.0,87183.0,0.06882066]
[1766577911084,0.06881455,87191.0,87182.0,0.01147025]
[1766577911399,0.01146907,87191.0,87183.0,0.01147012]
[1766577911610,0.06881368,87192.0,87183.0,0.01147012]
[1766577911760,0.01146894,87192.0,87183.0,0.01147012]
[1766577912168,0.01146894,87192.0,87184.0,0.01146999]
[1766577912571,0.01146907,87191.0,87183.0,0.01147012]
[1766577913003,0.06881381,87192.0,87183.0,0.01147012]
[1766577913421,0.0114692,87190.0,87181.0,0.08030197]
[1766577913610,0.37636953,87191.0,87182.0,0.01147025]
[1766577913768,0.01146907,87191.0,87183.0,0.01148012]
[1766577914584,0.0114692,87190.0,87183.0,0.01148012]
[1766577916116,0.01146933,87189.0,87183.0,0.01148012]
[1766577916320,0.06881369,87192.0,87183.0,0.01148012]
[1766577916652,0.01146907,87191.0,87183.0,0.02295024]
[1766577917408,0.06881469,87191.0,87183.0,0.01148012]
[1766577917960,0.0114692,87190.0,87183.0,0.01148012]
[1766577918569,0.01146946,87188.0,87179.0,3.26e-06]
[1766577918767,0.01146946,87188.0,87179.0,1.06e-06]
[1766577918768,0.01146973,87186.0,87179.0,1.06e-06]
[1766577919114,0.06881855,87186.0,87179.0,1.06e-06]
[1766577919315,0.01146973,87186.0,87179.0,1.06e-06]
[1766577920161,0.06881764,87187.0,87179.0,1.06e-06]
[1766577920338,0.01146959,87187.0,87179.0,0.01147171]
[1766577920558,0.01146959,87187.0,87179.0,1.06e-06]
[1766577920769,0.06881685,87188.0,87179.0,0.01147171]
[1766577920963,0.06881601,87189.0,87180.0,0.01147052]
[1766577921410,0.06881601,87189.0,87181.0,0.01147038]
[1766577921827,0.01146933,87189.0,87180.0,0.06882283]
[1766577922009,0.06881622,87189.0,87180.0,0.01147052]
[1766577922380,0.01146946,87188.0,87180.0,0.01147052]
[1766577924127,0.06881622,87189.0,87180.0,0.01147052]
[1766577924510,0.06881622,87189.0,87181.0,0.01147038]
[1766577924691,0.06881622,87189.0,87180.0,0.06882298]
[1766577925413,0.01146933,87189.0,87181.0,0.01147038]
[1766577926844,0.01146946,87188.0,87179.0,0.08030488]
[1766577927162,0.01146946,87188.0,87180.0,0.01147052]
[1766577928777,0.06881686,87188.0,87179.0,0.08030488]
[1766577928967,0.01147012,87183.0,87179.0,0.01148106]
[1766577929331,0.06882082,87183.0,87179.0,0.01148106]
[1766577929530,0.01147012,87183.0,87179.0,0.01148106]
[1766577929735,0.0573526,87180.0,87179.0,1.06e-06]
[1766577929934,0.01147104,87176.0,87172.0,1.06e-06]
[1766577930138,6.952e-05,87176.0,87168.0,0.02295209]
[1766577930346,0.01154056,87176.0,87168.0,0.02295209]
[1766577930551,0.01147117,87175.0,87168.0,0.01148]
[1766577930752,0.01147236,87166.0,87157.0,0.01147354]
[1766577930955,0.01147249,87165.0,87156.0,0.12103]
[1766577931182,0.01147249,87165.0,87155.0,0.01147381]
[1766577931542,0.01147302,87161.0,87151.0,0.01148]
[1766577931729,0.057365,87162.0,87153.0,0.06884439]
[1766577931866,0.01147288,87162.0,87154.0,0.01147394]
[1766577932067,0.01147275,87163.0,87154.0,0.01147394]
[1766577932513,0.01147288,87162.0,87154.0,0.01147394]
[1766577933125,0.01147302,87161.0,87151.0,0.08032597]
[1766577933303,0.01147302,87161.0,87152.0,0.05737083]
[1766577933908,0.01147315,87160.0,87152.0,0.06884503]
[1766577934119,0.01147315,87160.0,87152.0,0.0229542]
[1766577934435,0.01147302,87161.0,87153.0,0.01147407]
[1766577934590,0.01147315,87160.0,87152.0,0.0229542]
[1766577934995,0.01147341,87158.0,87152.0,0.01148]
[1766577935218,0.06883938,87160.0,87152.0,0.01148]
[1766577935418,0.01147328,87159.0,87152.0,0.01148]
[1766577936121,0.01147341,87158.0,87152.0,0.01148]
[1766577936323,0.06883855,87161.0,87152.0,0.01148]
[1766577936528,0.02295315,87160.0,87150.0,0.01147446]
[1766577936738,0.08031908,87160.0,87151.0,0.01147601]
[1766577937132,0.01147328,87159.0,87151.0,0.01147601]
[1766577937334,0.01147341,87158.0,87151.0,1.68e-06]
[1766577938753,0.06884061,87158.0,87151.0,1.68e-06]
[1766577938950,0.05737061,87153.0,87151.0,1.68e-06]
[1766577939149,0.05737102,87152.0,87151.0,1.68e-06]
[1766577939755,0.01147381,87155.0,87152.0,0.000549]
[1766577939955,0.01147354,87157.0,87152.0,0.000549]
[1766577940156,0.02295315,87160.0,87152.0,0.000549]
[1766577940411,0.02295315,87160.0,87151.0,1.68e-06]
[1766577940616,0.01148,87159.0,87153.0,0.01147407]
[1766577940874,0.01148,87159.0,87153.0,0.13468407]
[1766577941067,0.010931,87159.0,87155.0,0.01147381]
[1766577941206,0.010931,87159.0,87154.0,0.13468394]
[1766577941996,0.010931,87159.0,87155.0,0.01147381]
[1766577942201,0.010931,87159.0,87156.0,0.01147367]
[1766577942407,0.010931,87159.0,87154.0,0.12321]
[1766577942607,0.010931,87159.0,87154.0,0.13468394]
[1766577942804,0.010931,87159.0,87154.0,0.12321]
[1766577943135,0.010931,87159.0,87154.0,0.13468394]
[1766577943719,0.010931,87159.0,87154.0,0.12321]
[1766577944731,0.010931,87159.0,87151.0,0.01147601]
[1766577944928,0.01147341,87158.0,87151.0,1.68e-06]
[1766577945129,0.06884111,87158.0,87151.0,1.68e-06]
[1766577945329,0.02240428,87159.0,87151.0,1.68e-06]
[1766577945792,0.010931,87159.0,87151.0,1.68e-06]
[1766577946043,0.010931,87159.0,87151.0,0.01147601]
[1766577946232,0.010931,87159.0,87151.0,1.68e-06]
[1766577946442,0.010931,87159.0,87151.0,0.01147601]
[1766577947018,0.010931,87159.0,87151.0,0.06884759]
[1766577948758,0.010931,87159.0,87152.0,0.0114742]
[1766577950340,0.02240428,87159.0,87151.0,0.06884759]
[1766577950582,0.010931,87159.0,87152.0,0.06884501]
[1766577950994,0.010931,87159.0,87154.0,0.01147394]
[1766577951236,0.01147262,87164.0,87159.0,0.00028989]
[1766577951436,0.01148,87163.0,87159.0,0.00028989]
[1766577951635,0.01147288,87162.0,87154.0,0.19205314]
[1766577951870,0.08031673,87163.0,87154.0,0.13468394]
[1766577952068,0.08031673,87163.0,87155.0,0.01147381]
[1766577952414,0.01148,87163.0,87156.0,0.01147367]
[1766577952623,0.01148,87163.0,87159.0,0.13468328]
[1766577952624,0.011191,87163.0,87159.0,0.13468328]
[1766577953028,0.011191,87163.0,87159.0,0.12321]
[1766577953498,0.04588,87170.0,87159.0,0.12321]
[1766577953499,0.0114717,87171.0,87159.0,0.12321]
[1766577953740,0.06883218,87169.0,87161.0,0.12321]
[1766577953958,0.01147196,87169.0,87161.0,0.12321]
[1766577954158,0.01147223,87167.0,87161.0,0.12321]
[1766577954399,0.01147209,87168.0,87161.0,0.12321]
[1766577954967,0.01147223,87167.0,87161.0,0.12321]
[1766577955408,0.06883279,87168.0,87161.0,0.12321]
[1766577955784,0.01147196,87169.0,87161.0,0.12321]
[1766577955983,0.01148,87170.0,87166.0,0.06883363]
[1766577956213,0.01148,87170.0,87165.0,0.01147249]
[1766577956214,0.0088215,87170.0,87167.0,0.12321]
[1766577956414,0.00638708,87170.0,87167.0,0.12321]
[1766577960441,0.01202123,87167.0,87162.0,0.00017939]
[1766577960845,0.01147223,87167.0,87162.0,0.00017939]
[1766577961526,0.06883368,87167.0,87162.0,0.00017939]
[1766577961731,0.01147236,87166.0,87162.0,0.00017939]
[1766577962364,0.01147249,87165.0,87157.0,0.01147354]
[1766577962566,0.000179,87162.0,87155.0,0.06884284]
[1766577962696,0.000179,87162.0,87157.0,0.02295354]
[1766577962907,0.01147249,87165.0,87157.0,0.02295354]
[1766577963127,0.01147288,87162.0,87152.0,0.12318]
[1766577963449,0.01147328,87159.0,87153.0,0.03443]
[1766577963655,0.01147288,87162.0,87153.0,0.05736999]
[1766577963855,0.080317,87163.0,87153.0,0.05736999]
[1766577964063,0.05736566,87161.0,87151.0,0.05737274]
[1766577964621,0.06883868,87161.0,87152.0,0.06884518]
[1766577965002,0.06883892,87160.0,87152.0,0.0114742]
[1766577965179,0.01147328,87159.0,87151.0,0.06884707]
[1766577966154,0.06883936,87160.0,87152.0,0.0114742]
[1766577966561,0.01147328,87159.0,87151.0,0.01147601]
[1766577967264,0.01147341,87158.0,87151.0,1.68e-06]
[1766577967898,0.06883983,87159.0,87151.0,0.01147601]
[1766577968125,0.01147328,87159.0,87151.0,0.01147601]
[1766577969742,0.01147315,87160.0,87152.0,0.0114742]
[1766577970079,0.06883816,87161.0,87151.0,0.06884748]
[1766577970283,0.01147315,87160.0,87152.0,0.0114742]
[1766577971117,0.06883826,87161.0,87153.0,0.01147407]
[1766577971341,0.06883826,87161.0,87152.0,0.0114742]
[1766577971748,0.01147315,87160.0,87152.0,0.06884514]
[1766577972151,0.06883907,87160.0,87152.0,0.0114742]
[1766577972796,0.01147328,87159.0,87152.0,0.0114742]
[1766577972998,0.06883907,87160.0,87152.0,0.0114742]
[1766577973607,0.01147328,87159.0,87151.0,0.06884748]
[1766577973827,0.01147354,87157.0,87151.0,1.68e-06]
[1766577974034,0.0622035,87158.0,87150.0,0.01148]
[1766577974435,0.0622035,87158.0,87150.0,0.02296]
[1766577974714,0.01147354,87157.0,87150.0,0.02296]
[1766577976121,0.01147354,87157.0,87150.0,0.02241]
[1766577976122,0.01147367,87156.0,87150.0,0.02241]
[1766577976732,0.01147315,87160.0,87151.0,0.01147433]
[1766577976934,0.01147328,87159.0,87152.0,0.0114742]
[1766577977317,0.01147341,87158.0,87150.0,0.07977633]
[1766577977521,0.01147328,87159.0,87151.0,0.01147433]
[1766577977722,0.06884009,87159.0,87151.0,0.01147433]
[1766577978367,0.05736621,87161.0,87152.0,0.0114742]
[1766577978681,0.01147302,87161.0,87153.0,0.01147407]
[1766577978885,0.0803166,87163.0,87161.0,0.000549]
[1766577979054,0.01147288,87162.0,87154.0,0.01147394]
[1766577979259,0.01147288,87162.0,87154.0,0.06884357]
[1766577979520,0.0803166,87163.0,87155.0,0.01147381]
[1766577979797,0.02295275,87163.0,87155.0,0.06884285]
[1766577980554,0.01148,87163.0,87153.0,0.06884441]
[1766577980806,0.01147288,87162.0,87154.0,0.01147394]
[1766577981101,0.01147315,87160.0,87153.0,0.01147407]
[1766577981349,0.06883778,87162.0,87153.0,0.01147407]
[1766577981530,0.01147302,87161.0,87153.0,0.01147407]
[1766577981930,0.01147315,87160.0,87152.0,0.06884518]
[1766577982761,0.06883831,87161.0,87153.0,0.01147407]
[1766577983725,0.06883778,87162.0,87154.0,0.01147394]
[1766577983921,0.06883778,87162.0,87153.0,0.06884416]
[1766577983922,0.06883757,87162.0,87153.0,0.06884416]
[1766577985403,0.08031664,87163.0,87153.0,0.06884416]
[1766577985616,0.06883741,87162.0,87153.0,0.06884416]
[1766577985977,0.05736516,87161.0,87153.0,0.01147407]
[1766577986176,0.06883818,87161.0,87152.0,0.06884505]
[1766577986377,0.01147302,87161.0,87153.0,0.06884432]
[1766577986663,0.06883741,87162.0,87153.0,0.01147407]
[1766577986869,0.01147315,87160.0,87153.0,0.01147407]
[1766577987342,0.06883823,87161.0,87153.0,0.01147407]
[1766577987703,0.01147302,87161.0,87154.0,0.01147394]
[1766577988990,0.06883741,87162.0,87153.0,0.06884434]
[1766577989989,0.01147302,87161.0,87152.0,0.06884505]
[1766577990341,0.01147302,87161.0,87153.0,0.01147407]
[1766577990895,0.0688383,87161.0,87153.0,0.01147407]
[1766577991494,0.06883741,87162.0,87153.0,0.01147407]
[1766577991635,0.01147302,87161.0,87153.0,0.01147407]
[1766577991840,0.06883741,87162.0,87153.0,0.01147407]
[1766577992041,0.01147302,87161.0,87152.0,0.06884466]
[1766577992352,0.01147302,87161.0,87153.0,0.01147407]
[1766577993357,0.01147315,87160.0,87152.0,0.0114742]
[1766577993742,0.06883838,87161.0,87153.0,0.01147407]
[1766577993944,0.01147302,87161.0,87153.0,0.01147407]
[1766577994588,0.01147328,87159.0,87151.0,0.01147433]
[1766577994799,0.06883979,87159.0,87151.0,0.01147433]
[1766577995336,0.01147328,87159.0,87151.0,0.01147433]
[1766577995654,0.06883892,87160.0,87152.0,0.0114742]
[1766577995854,0.0688391,87160.0,87152.0,0.0114742]
[1766577996809,0.01147328,87159.0,87151.0,0.06884575]
[1766577997439,0.06884172,87157.0,87150.0,0.01093]
[1766577997589,0.06884172,87157.0,87147.0,0.08058056]
[1766577997590,0.06884212,87156.0,87147.0,0.08058056]
[1766577997997,0.06884212,87156.0,87148.0,0.01147473]
[1766577998167,0.06884172,87157.0,87148.0,0.05737364]
[1766577998367,0.01147367,87156.0,87148.0,0.01147473]
[1766577999017,0.01147367,87156.0,87147.0,0.08058056]
[1766577999198,0.06884172,87157.0,87148.0,0.01147473]
[1766577999393,0.01147381,87155.0,87147.0,0.02320675]
[1766577999598,0.06884291,87155.0,87147.0,0.02320675]
[1766578002708,0.06884394,87154.0,87147.0,0.01173189]
[1766578002944,0.01147394,87154.0,87147.0,0.01173189]
[1766578003373,0.0114742,87152.0,87147.0,0.00025189]
[1766578003576,0.05018575,87153.0,87147.0,0.00025189]
[1766578004560,0.0114742,87152.0,87147.0,0.00025189]
[1766578005056,0.01147407,87153.0,87147.0,0.00025189]
[1766578005842,0.0688445,87153.0,87147.0,0.00025189]
[1766578006023,0.06884136,87157.0,87147.0,0.00025189]
[1766578006376,0.01147367,87156.0,87147.0,0.0691006]
[1766578006517,0.01147367,87156.0,87149.0,0.0114746]
[1766578006718,0.06884136,87157.0,87149.0,0.0114746]
[1766578007132,0.02295341,87158.0,87147.0,0.13568675]
[1766578007339,0.06884127,87157.0,87148.0,0.01147473]
[1766578007542,0.01147367,87156.0,87148.0,0.01147473]
[1766578007745,0.01147367,87156.0,87148.0,0.06884822]
[1766578007943,0.01147381,87155.0,87147.0,0.19306058]
[1766578008149,0.01147394,87154.0,87147.0,0.12421189]
[1766578008738,0.06884374,87154.0,87147.0,0.12421189]
[1766578009139,0.01147394,87154.0,87147.0,0.12421189]
[1766578010941,0.01147407,87153.0,87147.0,0.00025189]
[1766578011988,0.0114742,87152.0,87147.0,0.00025189]
[1766578012297,0.0688446,87153.0,87147.0,0.00025189]
[1766578012884,0.06884373,87154.0,87147.0,0.00025189]
[1766578013525,0.05018485,87154.0,87147.0,0.00025189]
[1766578014653,0.06165879,87154.0,87147.0,0.00025189]
[1766578017515,0.01147446,87150.0,87147.0,0.00025189]
[1766578017720,0.06884728,87150.0,87147.0,0.00025189]
[1766578018306,0.01147446,87150.0,87147.0,0.00025189]
[1766578019477,0.01148,87153.0,87150.0,0.000549]
[1766578019700,0.01148,87153.0,87147.0,0.00025189]
[1766578021420,0.010931,87153.0,87147.0,0.01172675]
[1766578021648,0.010931,87153.0,87147.0,0.00025189]
[1766578022114,0.06884567,87152.0,87147.0,0.00025189]
[1766578023070,0.05737236,87150.0,87147.0,8.9e-07]
[1766578023279,0.06884682,87150.0,87147.0,8.9e-07]
[1766578023500,0.05018734,87150.0,87147.0,8.9e-07]
[1766578025413,0.06884577,87152.0,87147.0,8.9e-07]
[1766578025614,0.0114742,87152.0,87147.0,8.9e-07]
[1766578025818,0.07977551,87153.0,87147.0,8.9e-07]
[1766578026580,0.02240507,87153.0,87147.0,8.9e-07]
[1766578028712,0.07977581,87153.0,87147.0,8.9e-07]
[1766578028952,0.01147433,87151.0,87147.0,8.9e-07]
[1766578029274,0.0114742,87152.0,87147.0,8.9e-07]
[1766578029463,0.07977581,87153.0,87147.0,8.9e-07]
[1766578029641,0.02240507,87153.0,87147.0,8.9e-07]
[1766578030231,0.07977546,87153.0,87147.0,8.9e-07]
[1766578030650,0.010931,87153.0,87147.0,8.9e-07]
[1766578030831,0.01068,87153.0,87147.0,8.9e-07]
[1766578031214,0.01068,87153.0,87147.0,0.01147575]
[1766578031416,0.01068,87153.0,87148.0,0.01147473]
[1766578031622,0.01147302,87161.0,87148.0,0.01147473]
[1766578031826,0.02295315,87160.0,87153.0,0.11725]
[1766578032034,0.01148,87160.0,87156.0,0.11725]
[1766578033461,0.01093,87160.0,87156.0,0.11725]
[1766578033577,0.01148,87161.0,87156.0,0.11725]
[1766578036539,0.01148,87161.0,87156.0,0.12872367]
[1766578036955,0.01148,87161.0,87156.0,0.11725]
[1766578037157,0.01148,87161.0,87156.0,0.12872367]
[1766578037896,0.01147183,87170.0,87160.0,0.01147315]
[1766578038121,0.01148,87166.0,87161.0,0.11725]
[1766578038587,0.01147196,87169.0,87161.0,0.11725]
[1766578038819,0.02295196,87169.0,87162.0,0.11725]
[1766578039024,0.08031188,87169.0,87162.0,0.11725]
[1766578039235,0.02295196,87169.0,87162.0,0.11725]
[1766578039463,0.01148,87170.0,87165.0,0.11725]
[1766578039854,0.01148,87170.0,87165.0,0.12872249]
[1766578040400,0.01148,87174.0,87168.0,0.11725]
[1766578041639,0.01147117,87175.0,87168.0,0.12872209]
[1766578041640,0.01148,87175.0,87168.0,0.12872209]
[1766578042071,0.01148,87175.0,87168.0,0.11725]
[1766578042183,0.01147131,87174.0,87168.0,0.11725]
[1766578043274,0.08030768,87175.0,87168.0,0.11725]
[1766578043548,0.01147144,87173.0,87168.0,0.11725]
[1766578043850,0.01147144,87173.0,87168.0,0.116701]
[1766578044701,0.06882794,87174.0,87168.0,0.116701]
[1766578046353,0.01147131,87174.0,87168.0,0.116701]
[1766578046919,0.06882916,87173.0,87168.0,0.116701]
[1766578047098,0.06882893,87173.0,87168.0,0.116701]
[1766578047525,0.01147144,87173.0,87168.0,0.116701]
[1766578048251,0.06882838,87174.0,87168.0,0.116701]
[1766578048469,0.01147144,87173.0,87168.0,0.116701]
[1766578049238,0.06882818,87174.0,87168.0,0.116701]
[1766578049435,0.06882891,87173.0,87168.0,0.116701]
[1766578049622,0.06882818,87174.0,87168.0,0.116701]
[1766578049823,0.0114717,87171.0,87168.0,0.116701]
[1766578050336,0.06883024,87171.0,87168.0,0.116701]
[1766578051009,0.01147223,87167.0,87164.0,0.01148]
[1766578051420,0.00055,87164.0,87160.0,0.01147315]
[1766578051598,1e-06,87164.0,87161.0,0.05736462]
[1766578052047,0.01147196,87169.0,87161.0,0.12181]
[1766578052224,0.01147183,87170.0,87162.0,0.13328288]
[1766578052802,0.01147183,87170.0,87162.0,0.12181]
[1766578053025,0.06883108,87170.0,87162.0,0.13328288]
[1766578053226,0.06883108,87170.0,87162.0,0.12181]
[1766578053547,0.06883108,87170.0,87162.0,0.13329]
[1766578054092,0.06883108,87170.0,87162.0,0.14476288]
[1766578054500,0.01147196,87169.0,87162.0,0.13329]
[1766578054942,0.06883108,87170.0,87162.0,0.13329]
[1766578055167,0.01147196,87169.0,87162.0,0.13329]
[1766578055364,0.06883119,87170.0,87162.0,0.14476288]
[1766578055719,0.01147196,87169.0,87162.0,0.13329]
[1766578056672,0.06883119,87170.0,87162.0,0.13329]
[1766578057214,0.06883197,87169.0,87162.0,0.13329]
[1766578057366,0.01147209,87168.0,87162.0,0.13329]
[1766578057755,0.01147196,87169.0,87162.0,0.13329]
[1766578058426,0.01147236,87166.0,87162.0,0.13329]
[1766578058582,0.01147249,87165.0,87162.0,0.13329]
[1766578058790,0.06883551,87165.0,87162.0,0.13329]
[1766578059198,0.05736318,87164.0,87162.0,0.13274]
[1766578059605,0.06883551,87165.0,87162.0,0.13274]
[1766578060494,0.06883551,87165.0,87162.0,0.01148]
[1766578060704,0.01147249,87165.0,87162.0,0.01148]
[1766578061413,0.05736314,87164.0,87162.0,0.01148]
[1766578061612,0.06883534,87165.0,87162.0,0.01148]
[1766578062045,0.06883634,87164.0,87156.0,0.12069]
[1766578062238,0.06883634,87164.0,87157.0,0.01148]
[1766578062434,0.06883634,87164.0,87158.0,0.01148]
[1766578063063,0.01147275,87163.0,87158.0,0.01148]
[1766578063224,0.01147262,87164.0,87158.0,0.01148]
[1766578063950,0.01147275,87163.0,87158.0,0.01148]
[1766578064483,0.06883601,87164.0,87158.0,0.01148]
[1766578064828,0.01147275,87163.0,87158.0,0.01148]
[1766578065532,0.01147262,87164.0,87158.0,0.01148]
[1766578066051,0.01147275,87163.0,87157.0,0.01148]
[1766578066631,0.06883598,87164.0,87157.0,0.01148]
[1766578067542,0.01147262,87164.0,87157.0,0.01148]
[1766578068730,0.01147249,87165.0,87157.0,0.02295354]
[1766578068885,0.01147249,87165.0,87157.0,0.0803212]
[1766578069087,0.05736233,87167.0,87152.0,0.12069]
[1766578069088,0.01147223,87167.0,87152.0,0.12069]
[1766578069288,0.01147249,87165.0,87157.0,0.01147354]
[1766578069488,0.01147249,87165.0,87156.0,0.0688416]
[1766578069699,0.05736249,87165.0,87156.0,0.0688416]
[1766578070079,0.01147262,87164.0,87156.0,0.0688416]
[1766578070282,0.06883509,87165.0,87156.0,0.0688416]
[1766578070490,0.01147223,87167.0,87165.0,0.000549]
[1766578070696,0.05736181,87166.0,87165.0,0.000549]
[1766578071118,0.01147249,87165.0,87157.0,0.01147354]
[1766578071521,0.06883417,87166.0,87157.0,0.01147354]
[1766578071728,0.06883392,87167.0,87157.0,0.06884089]
[1766578071927,0.01147236,87166.0,87157.0,0.06884089]
[1766578072135,0.01147223,87167.0,87158.0,0.06884033]
[1766578072346,0.01147223,87167.0,87159.0,0.01147328]
[1766578072754,0.01148,87168.0,87167.0,0.000549]
[1766578073351,0.01148,87168.0,87161.0,0.13216302]
[1766578073552,0.06884071,87168.0,87161.0,0.12069]
[1766578073674,0.02295209,87168.0,87161.0,0.12069]
[1766578074071,0.01147236,87166.0,87161.0,0.12069]
[1766578074508,0.06883383,87167.0,87161.0,0.12069]
[1766578074711,0.01147223,87167.0,87161.0,0.12069]
[1766578074913,0.08031273,87168.0,87161.0,0.12069]
[1766578075277,0.01147223,87167.0,87161.0,0.12069]
[1766578075654,0.08031273,87168.0,87161.0,0.12069]
[1766578076058,0.01147223,87167.0,87161.0,0.12069]
[1766578077540,0.08031273,87168.0,87161.0,0.12069]
[1766578077941,0.02295209,87168.0,87161.0,0.12069]
[1766578078474,0.01148,87168.0,87162.0,0.01147288]
[1766578078741,0.010931,87168.0,87162.0,0.01147288]
[1766578078943,0.010931,87168.0,87161.0,0.13216302]
[1766578080391,0.010931,87168.0,87161.0,0.18952794]
[1766578080623,0.010931,87168.0,87162.0,0.01147288]
[1766578080975,0.010931,87168.0,87161.0,0.18952794]
[1766578081393,0.010931,87168.0,87162.0,0.12348]
[1766578081615,0.010931,87168.0,87162.0,0.13495288]
[1766578081765,0.010931,87168.0,87163.0,0.06883605]
[1766578081983,0.010931,87168.0,87162.0,0.12348]
[1766578082184,0.010931,87168.0,87162.0,0.13495288]
[1766578082419,0.010931,87168.0,87162.0,0.12348]
[1766578082627,0.01147223,87167.0,87162.0,0.12348]
[1766578082810,0.06883542,87165.0,87162.0,0.12348]
[1766578082974,0.01147262,87164.0,87158.0,0.01148]
[1766578083433,0.01147275,87163.0,87158.0,0.01148]
[1766578084067,0.01147262,87164.0,87158.0,0.01148]
[1766578084194,0.06883542,87165.0,87156.0,0.13495367]
[1766578084395,0.06883542,87165.0,87157.0,0.01148]
[1766578085155,0.0688353,87166.0,87157.0,0.01148]
[1766578085369,0.01147249,87165.0,87157.0,0.01148]
[1766578085497,0.07976377,87168.0,87159.0,0.01147328]
[1766578086099,0.0688335,87167.0,87158.0,0.06884003]
[1766578086319,0.01147236,87166.0,87158.0,0.01147341]
[1766578086996,0.0688335,87167.0,87158.0,0.01147341]
[1766578087282,0.01147223,87167.0,87158.0,0.06884017]
[1766578088153,0.0797637,87168.0,87159.0,0.01147328]
[1766578088826,0.01147223,87167.0,87158.0,0.06884017]
[1766578088965,0.0797637,87168.0,87159.0,0.01147328]
[1766578089313,0.02240309,87168.0,87158.0,0.0573666]
[1766578089474,0.02240309,87168.0,87159.0,0.01147328]
[1766578089656,0.02240309,87168.0,87159.0,0.06883941]
[1766578090067,0.010931,87168.0,87160.0,0.06883889]
[1766578090288,0.010931,87168.0,87160.0,0.01147315]
[1766578090480,0.010931,87168.0,87159.0,0.06883915]
[1766578090766,0.010931,87168.0,87160.0,0.12348]
[1766578091127,0.07976367,87168.0,87160.0,0.12348]
[1766578091323,0.06883389,87167.0,87160.0,0.12348]
[1766578091548,0.01147236,87166.0,87160.0,0.12348]
[1766578091753,0.01147249,87165.0,87160.0,0.12348]